bitfinex-derivatives/quotes_SOLF0:USTF0_20250924
["timestamp","ask_amount","ask_price","bid_price","bid_amount"]
[1758715014660,7.52,212.15,212.11,7.41]
[1758715015466,7.52,212.15,212.1,3.94450594]
[1758715015856,7.52,212.15,212.11,7.41]
[1758715016260,7.52,212.15,212.1,3.94450594]
[1758715016861,7.52,212.15,212.11,7.41]
[1758715017071,7.52,212.15,212.1,3.94450594]
[1758715017366,4.2415,212.13,212.1,3.94450594]
[1758715017565,4.2415,212.13,212.11,7.41]
[1758715018770,4.2415,212.13,212.1,3.94450594]
[1758715019368,4.2409,212.15,212.1,3.94450594]
[1758715019672,7.85,212.18,212.12,11.93450594]
[1758715020665,65.9583,212.19,212.12,3.94450594]
[1758715020870,7.85,212.18,212.12,3.94450594]
[1758715021068,4.2409,212.15,212.12,3.94450594]
[1758715021376,7.85,212.21,212.14,7.99]
[1758715021574,7.85,212.21,212.15,9.34610226]
[1758715022075,4.24,212.2,212.15,1.35610226]
[1758715022383,4.24,212.2,212.15,5.3006082]
[1758715022773,4.2402,212.19,212.15,5.3006082]
[1758715022974,4.2402,212.19,212.16,7.99]
[1758715024078,4.2402,212.19,212.15,5.3006082]
[1758715024781,4.2402,212.19,212.16,7.99]
[1758715025082,4.2404,212.18,212.15,5.3006082]
[1758715025282,4.2404,212.18,212.16,7.99]
[1758715025873,4.2404,212.18,212.15,5.3006082]
[1758715026279,4.2404,212.18,212.15,1.35610226]
[1758715026878,4.2404,212.18,212.16,7.99]
[1758715027180,4.2404,212.18,212.15,1.35610226]
[1758715027581,4.2404,212.18,212.16,7.99]
[1758715027983,4.2404,212.18,212.15,1.35610226]
[1758715028381,4.2404,212.18,212.16,7.99]
[1758715028583,4.2404,212.18,212.15,5.3006082]
[1758715028786,4.2404,212.18,212.16,7.99]
[1758715029187,4.2404,212.18,212.15,5.3006082]
[1758715029680,4.2404,212.18,212.16,7.99]
[1758715029885,4.2399,212.2,212.15,5.3006082]
[1758715030386,178.33809265,212.23,212.15,13.2906082]
[1758715031080,4.2402,212.19,212.15,5.3006082]
[1758715031480,178.33809265,212.23,212.15,13.2906082]
[1758715033485,12.09,212.2,212.15,5.3006082]
[1758715033675,7.85,212.2,212.16,7.99]
[1758715033879,7.85,212.2,212.15,5.3006082]
[1758715034082,7.85,212.2,212.16,7.99]
[1758715034483,4.2404,212.18,212.16,7.99]
[1758715035284,12.0904,212.18,212.15,9.34610226]
[1758715035484,12.0904,212.18,212.16,7.99]
[1758715035885,4.2404,212.18,212.16,7.99]
[1758715036785,4.2404,212.18,212.15,1.35610226]
[1758715037089,12.0906,212.17,212.15,9.34610226]
[1758715037486,4.2406,212.17,212.15,9.34610226]
[1758715038583,4.2406,212.17,212.15,1.35610226]
[1758715038789,4.2406,212.17,212.16,7.99]
[1758715038990,12.0902,212.19,212.16,7.99]
[1758715039992,4.2402,212.19,212.16,7.99]
[1758715040385,4.2402,212.19,212.15,1.35610226]
[1758715041085,4.2398,212.21,212.15,5.31265405]
[1758715041886,7.85,212.25,212.19,1.35610226]
[1758715042092,7.85,212.26,212.2,3.68510268]
[1758715042294,7.85,212.27,212.21,3.68510268]
[1758715042584,7.85,212.29,212.23,7.99]
[1758715042791,1.35610226,212.3,212.24,3.68510268]
[1758715042991,4.2388,212.26,212.23,7.99]
[1758715043190,4.2388,212.26,212.24,3.68511852]
[1758715043392,4.2388,212.26,212.23,7.99]
[1758715043587,11.9984,212.28,212.24,11.67400672]
[1758715043787,11.9984,212.28,212.25,3.68369701]
[1758715043988,11.9984,212.28,212.26,3.68369701]
[1758715044188,11.9984,212.28,212.25,7.21]
[1758715044383,11.9984,212.28,212.26,3.68144235]
[1758715044588,11.9984,212.28,212.27,3.68144235]
[1758715045287,11.9984,212.28,212.25,7.21]
[1758715045489,11.9984,212.28,212.26,3.67921512]
[1758715045689,11.9984,212.28,212.25,7.21]
[1758715045890,4.2384,212.28,212.26,3.67890532]
[1758715046193,4.2388,212.26,212.24,8.56610226]
[1758715046492,4.2388,212.26,212.25,3.67819342]
[1758715048804,11.9984,212.28,212.25,10.88819342]
[1758715048993,11.9984,212.28,212.25,7.21]
[1758715049299,11.9984,212.28,212.26,3.67492285]
[1758715049494,4.238,212.3,212.24,1.35610226]
[1758715049688,7.76,212.29,212.26,7.21]
[1758715051695,7.76,212.29,212.25,7.21]
[1758715051896,7.76,212.29,212.27,7.21]
[1758715052093,4.238,212.3,212.25,7.21]
[1758715052293,4.2373,212.33,212.27,7.21]
[1758715052496,4.2373,212.33,212.27,8.56610226]
[1758715053709,4.2373,212.33,212.29,7.21]
[1758715053903,7.76,212.32,212.29,7.21]
[1758715059203,7.76,212.32,212.27,1.35610226]
[1758715059408,7.76,212.32,212.28,7.21]
[1758715059602,7.76,212.32,212.27,1.35610226]
[1758715060004,7.76,212.34,212.27,1.35610226]
[1758715060203,65.9081,212.35,212.24,130.51420864]
[1758715060403,7.76,212.34,212.25,3.67123576]
[1758715060707,7.76,212.34,212.26,3.67123576]
[1758715060907,65.9081,212.35,212.24,130.51420864]
[1758715061106,7.76,212.34,212.25,3.67127504]
[1758715061304,7.76,212.3,212.26,10.88127504]
[1758715061507,7.76,212.3,212.26,7.21]
[1758715061709,4.2379,212.31,212.26,7.21]
[1758715061911,7.76,212.3,212.24,123.30420864]
[1758715062111,7.76,212.29,212.22,7.21]
[1758715062312,7.76,212.29,212.23,3.6733556]
[1758715062507,7.76,212.29,212.22,7.21]
[1758715062713,7.76,212.29,212.23,3.67352127]
[1758715062913,7.76,212.29,212.22,7.21]
[1758715063109,7.76,212.29,212.23,3.67350519]
[1758715063309,11.9986,212.27,212.24,10.88350519]
[1758715063613,7.76,212.32,212.25,7.21]
[1758715064810,11.9975,212.32,212.26,3.67465588]
[1758715065010,11.9975,212.32,212.21,122.03292373]
[1758715065011,7.76,212.32,212.27,3.67445628]
[1758715065209,7.76,212.34,212.26,7.21]
[1758715065411,7.76,212.34,212.27,3.67474659]
[1758715065611,7.76,212.34,212.26,7.21]
[1758715065808,7.76,212.34,212.27,3.68239705]
[1758715066011,7.76,212.34,212.26,7.21]
[1758715066213,4.2378,212.31,212.28,7.21]
[1758715066514,11.9978,212.31,212.28,7.21]
[1758715067909,4.2373,212.33,212.26,7.21]
[1758715068111,4.2373,212.33,212.27,3.68266786]
[1758715068317,7.76,212.35,212.29,7.21]
[1758715068511,7.76,212.35,212.31,7.21]
[1758715068711,7.76,212.35,212.26,7.21]
[1758715068912,7.76,212.35,212.28,7.21]
[1758715069111,7.76,212.35,212.3,7.21]
[1758715069311,11.997,212.35,212.29,4.238]
[1758715069514,11.997,212.35,212.31,7.21]
[1758715069714,11.997,212.35,212.29,4.238]
[1758715069914,7.76,212.35,212.31,7.21]
[1758715070111,7.76,212.35,212.3,7.21]
[1758715070608,7.76,212.35,212.29,4.238]
[1758715070811,7.76,212.35,212.31,7.21]
[1758715071017,7.76,212.35,212.3,7.21]
[1758715071318,7.76,212.35,212.29,4.238]
[1758715071518,7.76,212.35,212.3,3.67766417]
[1758715071819,7.76,212.35,212.29,4.238]
[1758715072114,7.76,212.35,212.31,7.21]
[1758715072313,7.76,212.35,212.3,7.21]
[1758715072618,7.76,212.35,212.31,10.88963597]
[1758715072810,7.76,212.35,212.31,7.21]
[1758715073214,7.76,212.35,212.29,4.238]
[1758715073415,7.76,212.35,212.31,7.21]
[1758715074520,11.997,212.35,212.32,3.68096434]
[1758715074712,11.997,212.35,212.33,3.68096434]
[1758715074916,11.997,212.35,212.28,3.95655179]
[1758715075113,11.997,212.35,212.29,11.55096434]
[1758715075419,7.48,212.34,212.31,7.87]
[1758715075620,7.48,212.34,212.32,3.68096434]
[1758715075822,7.48,212.34,212.33,3.68096434]
[1758715076020,65.9081,212.35,212.27,11.82655179]
[1758715076323,7.48,212.34,212.28,3.68039927]
[1758715076522,7.48,212.34,212.29,3.68039927]
[1758715076718,7.48,212.34,212.24,249.84913167]
[1758715077021,7.48,212.34,212.25,3.68075536]
[1758715077216,7.48,212.34,212.26,3.68075536]
[1758715077425,7.48,212.29,212.27,3.68075536]
[1758715077625,7.48,212.29,212.28,3.68075536]
[1758715080919,4.2375,212.32,212.29,7.26]
[1758715081119,65.8993,212.38,212.3,10.94075536]
[1758715081120,7.36,212.37,212.3,10.94075536]
[1758715081318,7.36,212.37,212.31,3.68075536]
[1758715081518,0.8198749,212.4,212.33,7.26]
[1758715081824,7.36,212.4,212.34,3.68367354]
[1758715082017,65.8805,212.44,212.34,3.68367354]
[1758715082018,281.1211494,212.41,212.35,3.68367354]
[1758715082225,273.7611494,212.41,212.36,3.68367354]
[1758715082429,7.36,212.4,212.34,7.26]
[1758715082724,11.5961,212.39,212.36,7.26]
[1758715083021,273.7611494,212.41,212.37,3.68331337]
[1758715083224,281.1211494,212.41,212.38,7.26]
[1758715083427,285.3569494,212.41,212.38,7.26]
[1758715084224,11.5958,212.41,212.38,7.26]
[1758715085430,4.2358,212.41,212.35,7.26]
[1758715085621,4.2358,212.41,212.37,7.26]
[1758715085822,7.36,212.4,212.38,3.68577081]
[1758715086122,7.36,212.4,212.39,3.68558366]
[1758715087530,68.80768616,212.47,212.4,7.26]
[1758715087531,7.36,212.46,212.4,7.26]
[1758715087726,7.36,212.48,212.41,3.68558366]
[1758715087923,7.36,212.4,212.36,7.26]
[1758715088127,7.36,212.4,212.37,3.68542361]
[1758715088333,7.36,212.4,212.38,3.68542361]
[1758715088630,7.36,212.4,212.39,3.68542361]
[1758715091633,7.36,212.42,212.39,3.68542361]
[1758715091837,11.5952,212.44,212.4,10.94542361]
[1758715092031,7.36,212.43,212.4,7.26]
[1758715093842,4.2355,212.43,212.4,7.26]
[1758715094047,7.36,212.42,212.36,7.26]
[1758715094238,7.36,212.42,212.38,7.26]
[1758715094440,7.36,212.42,212.39,3.6801795]
[1758715094641,7.36,212.42,212.4,3.6801795]
[1758715094943,7.36,212.42,212.36,7.26]
[1758715095142,7.36,212.42,212.38,7.26]
[1758715095448,7.36,212.42,212.39,10.93716692]
[1758715095744,7.36,212.42,212.4,3.67716692]
[1758715095943,7.36,212.42,212.39,7.26]
[1758715096144,7.36,212.42,212.4,3.67580162]
[1758715096346,7.36,212.42,212.39,7.26]
[1758715096550,7.36,212.42,212.4,3.67542216]
[1758715096748,7.36,212.42,212.39,7.26]
[1758715096940,4.2355,212.43,212.4,3.67574092]
[1758715097140,4.2355,212.43,212.36,7.26]
[1758715097341,4.2355,212.43,212.37,3.67554094]
[1758715097542,11.5955,212.43,212.39,7.26]
[1758715097743,11.5955,212.43,212.4,3.67554094]
[1758715097942,11.5955,212.43,212.39,7.26]
[1758715098145,11.5955,212.43,212.4,3.67555408]
[1758715098349,11.5955,212.43,212.39,7.26]
[1758715098550,11.5955,212.43,212.4,3.6754473]
[1758715098750,11.5955,212.43,212.39,7.26]
[1758715098948,11.5955,212.43,212.4,3.67545003]
[1758715099147,11.5955,212.43,212.39,7.26]
[1758715099451,7.36,212.42,212.36,7.26]
[1758715099645,7.36,212.42,212.37,3.67526264]
[1758715099852,7.36,212.42,212.39,7.26]
[1758715100649,11.5956,212.42,212.36,7.26]
[1758715100952,7.36,212.41,212.38,7.26]
[1758715101246,7.36,212.41,212.39,3.67552468]
[1758715101449,7.36,212.41,212.38,7.26]
[1758715101650,7.36,212.41,212.39,10.9353866]
[1758715101952,7.36,212.41,212.39,7.26]
[1758715102353,7.36,212.43,212.39,7.26]
[1758715102648,4.2351,212.44,212.39,7.26]
[1758715102846,7.36,212.43,212.39,7.26]
[1758715103042,4.2351,212.44,212.39,7.26]
[1758715103243,7.36,212.42,212.39,7.26]
[1758715103449,65.8701,212.48,212.39,7.26]
[1758715103750,7.36,212.47,212.39,7.26]
[1758715104050,7.36,212.47,212.4,3.67308039]
[1758715104253,7.36,212.47,212.39,7.26]
[1758715104456,7.36,212.47,212.4,3.67280151]
[1758715104753,7.36,212.47,212.39,7.26]
[1758715104947,7.36,212.47,212.4,3.67065342]
[1758715105151,7.36,212.47,212.39,7.26]
[1758715105152,4.2348,212.46,212.39,7.26]
[1758715105351,4.2348,212.46,212.4,3.66932964]
[1758715105553,4.2348,212.46,212.37,7.36]
[1758715105758,4.2348,212.46,212.39,7.36]
[1758715105958,4.2348,212.46,212.4,3.66882685]
[1758715106254,4.2348,212.46,212.39,7.36]
[1758715106460,4.2348,212.46,212.4,3.66802036]
[1758715106652,4.2348,212.46,212.39,7.36]
[1758715106956,4.2348,212.46,212.4,3.66930276]
[1758715107250,4.2348,212.46,212.39,7.36]
[1758715107460,4.2348,212.46,212.4,3.66930248]
[1758715107649,4.2348,212.46,212.39,7.36]
[1758715107849,4.2348,212.46,212.4,3.66930248]
[1758715108050,4.2348,212.46,212.39,7.36]
[1758715108250,4.2348,212.46,212.4,3.67012211]
[1758715108461,4.2348,212.46,212.41,3.67012211]
[1758715108756,7.77,212.45,212.39,7.36]
[1758715108956,7.77,212.45,212.41,7.36]
[1758715109257,7.77,212.45,212.39,7.36]
[1758715109457,7.77,212.45,212.4,3.66998294]
[1758715109659,7.77,212.45,212.42,7.36]
[1758715111147,4.2344,212.48,212.43,3.67087608]
[1758715111353,7.77,212.47,212.44,11.03087608]
[1758715111553,7.77,212.47,212.4,7.36]
[1758715111757,7.77,212.47,212.42,7.36]
[1758715111955,7.77,212.47,212.44,7.36]
[1758715112858,7.77,212.47,212.41,4.2356]
[1758715113061,7.77,212.47,212.42,3.67117174]
[1758715113257,7.77,212.47,212.43,3.67117174]
[1758715113464,7.77,212.47,212.45,7.36]
[1758715113666,7.77,212.47,212.46,3.67064156]
[1758715117654,4.2349,212.46,212.4,3.95655179]
[1758715117963,7.77,212.45,212.41,11.03372303]
[1758715118164,7.77,212.45,212.42,3.67372303]
[1758715118364,7.77,212.45,212.43,3.67372303]
[1758715118566,7.77,212.45,212.44,3.67372303]
[1758715126462,4.2348,212.46,212.44,3.67372303]
[1758715126666,4.2348,212.46,212.45,3.67372303]
[1758715127168,12.0048,212.46,212.45,3.67372303]
[1758715130068,12.0055,212.42,212.41,3.95655179]
[1758715132578,4.2352,212.44,212.42,7.36]
[1758715132878,7.77,212.48,212.42,7.36]
[1758715133063,170.40749026,212.49,212.42,11.31655179]
[1758715133265,7.77,212.48,212.42,11.31655179]
[1758715133564,7.77,212.44,212.42,3.95655179]
[1758715134071,7.67,212.43,212.42,3.95655179]
[1758715134275,7.67,212.43,212.41,3.95655179]
[1758715134574,7.67,212.43,212.42,3.95655179]
[1758715142078,7.67,212.43,212.42,7.62794343]
[1758715142880,4.2353,212.44,212.42,7.62794343]
[1758715143080,11.6953,212.44,212.43,3.67139164]
[1758715150380,4.2354,212.43,212.41,3.95655179]
[1758715150575,11.6954,212.43,212.41,3.95655179]
[1758715150979,11.6954,212.43,212.41,11.21655179]
[1758715152678,4.2354,212.43,212.41,11.21655179]
[1758715152989,4.2354,212.43,212.42,7.26]
[1758715153787,4.2354,212.43,212.41,3.95655179]
[1758715154088,11.6954,212.43,212.41,3.95655179]
[1758715154280,11.6954,212.43,212.39,13.80955816]
[1758715154281,11.6954,212.43,212.42,3.95655179]
[1758715154480,11.6957,212.41,212.4,3.95655179]
[1758715156782,7.46,212.41,212.4,3.95655179]
[1758715158083,7.46,212.45,212.4,3.95655179]
[1758715158285,7.46,212.41,212.4,3.95655179]
[1758715163585,4.2359,212.4,212.39,3.95655179]
[1758715164089,12.1259,212.4,212.38,235.67762834]
[1758715164484,7.89,212.39,212.38,235.67762834]
[1758715165094,12.1259,212.4,212.38,235.67762834]
[1758715165291,12.1259,212.4,212.38,231.72107655]
[1758715165582,12.1259,212.4,212.38,239.25107655]
[1758715165785,7.89,212.43,212.38,235.67762834]
[1758715165986,65.8681,212.48,212.39,7.53]
[1758715165987,7.89,212.46,212.39,7.53]
[1758715166186,7.89,212.46,212.4,3.95655179]
[1758715167193,4.2356,212.42,212.4,3.95655179]
[1758715167489,12.1256,212.42,212.4,11.48655179]
[1758715169194,12.1256,212.42,212.4,7.53]
[1758715169390,12.1256,212.42,212.4,11.48655179]
[1758715169796,4.235,212.45,212.41,119.41655179]
[1758715169990,4.235,212.45,212.42,7.53]
[1758715170188,4.235,212.45,212.41,119.41655179]
[1758715170589,12.125,212.45,212.42,7.53]
[1758715171598,4.2351,212.44,212.42,7.53]
[1758715171793,7.89,212.45,212.4,119.41655179]
[1758715171992,1.35212312,212.46,212.4,115.46]
[1758715172594,7.89,212.45,212.4,115.46]
[1758715172797,1.35212312,212.46,212.4,115.46]
[1758715173098,7.89,212.45,212.4,115.46]
[1758715173288,4.2355,212.42,212.4,115.46]
[1758715173494,12.1255,212.42,212.4,115.46]
[1758715174200,4.2355,212.42,212.4,115.46]
[1758715174398,4.2355,212.42,212.41,7.53]
[1758715176201,4.2355,212.42,212.4,126.94655179]
[1758715176398,4.2355,212.42,212.4,122.99]
[1758715176997,12.1255,212.42,212.4,115.46]
[1758715177902,12.1255,212.42,212.39,3.95655179]
[1758715177903,4.2359,212.4,212.39,3.95655179]
[1758715178102,4.2359,212.4,212.39,115.42]
[1758715178999,4.2359,212.4,212.39,122.95]
[1758715181202,4.2359,212.4,212.39,115.42]
[1758715181695,12.1262,212.38,212.36,11.48655179]
[1758715181904,12.1262,212.38,212.36,122.95]
[1758715183304,4.2362,212.38,212.36,122.95]
[1758715184999,4.2362,212.38,212.37,7.53]
[1758715185200,12.1258,212.41,212.37,7.53]
[1758715185402,12.1258,212.41,212.36,115.42]
[1758715185601,7.89,212.41,212.36,115.42]
[1758715186207,7.89,212.41,212.37,7.53]
[1758715186902,7.89,212.41,212.36,115.42]
[1758715187108,7.89,212.41,212.37,7.53]
[1758715187402,7.89,212.41,212.36,115.42]
[1758715187606,7.89,212.41,212.37,7.53]
[1758715188007,4.2361,212.39,212.37,7.53]
[1758715188503,7.89,212.45,212.37,7.53]
[1758715188805,4.236,212.4,212.36,115.42]
[1758715189401,4.236,212.4,212.37,7.53]
[1758715189800,4.236,212.4,212.36,115.42]
[1758715190610,4.236,212.4,212.37,7.53]
[1758715190812,4.236,212.4,212.36,115.42]
[1758715191808,4.2353,212.43,212.37,7.53]
[1758715192412,4.2353,212.43,212.39,7.53]
[1758715192713,4.2349,212.45,212.4,7.53]
[1758715192914,7.89,212.48,212.4,7.53]
[1758715193606,7.89,212.48,212.4,11.48655179]
[1758715194315,4.2351,212.44,212.4,3.95655179]
[1758715194608,4.2351,212.44,212.41,7.73]
[1758715194909,4.2351,212.44,212.4,3.95655179]
[1758715195313,4.2351,212.44,212.41,7.73]
[1758715195506,4.2351,212.44,212.4,3.95655179]
[1758715195908,4.2351,212.44,212.41,7.73]
[1758715196111,4.2351,212.44,212.4,3.95655179]
[1758715196310,4.2351,212.44,212.41,7.73]
[1758715196509,4.2351,212.44,212.4,3.95655179]
[1758715196711,4.2351,212.44,212.41,7.73]
[1758715197011,4.2351,212.44,212.4,3.95655179]
[1758715197207,4.2351,212.44,212.41,7.73]
[1758715198212,4.2347,212.46,212.41,3.95655179]
[1758715198411,4.2347,212.46,212.42,7.73]
[1758715198613,4.2347,212.46,212.41,3.95655179]
[1758715198810,4.2347,212.46,212.42,7.73]
[1758715199214,4.235,212.45,212.42,7.73]
[1758715199412,4.235,212.45,212.42,7.44]
[1758715199613,4.235,212.45,212.41,3.95655179]
[1758715199809,4.2352,212.44,212.42,7.44]
[1758715200312,11.6354,212.43,212.4,7.44]
[1758715201412,4.2356,212.42,212.4,7.44]
[1758715201607,4.2356,212.42,212.38,3.95655179]
[1758715201608,65.8739,212.46,212.38,54.29655179]
[1758715201813,7.4,212.44,212.38,54.29655179]
[1758715202011,65.8607,212.5,212.39,3.95655179]
[1758715202312,65.8607,212.5,212.4,11.39655179]
[1758715203318,65.8607,212.5,212.38,42.9]
[1758715203319,7.4,212.53,212.42,7.44]
[1758715203516,7.4,212.53,212.43,11.39655179]
[1758715203723,4.2341,212.49,212.43,11.39655179]
[1758715204022,4.2341,212.49,212.43,77.59655179]
[1758715204328,11.6335,212.52,212.44,7.44]
[1758715206028,4.2338,212.51,212.44,7.44]
[1758715206226,7.4,212.52,212.44,7.44]
[1758715207327,4.234,212.5,212.44,7.44]
[1758715210035,4.234,212.5,212.44,11.39655179]
[1758715211539,7.4,212.52,212.45,7.44]
[1758715213138,4.2337,212.51,212.45,11.39655179]
[1758715213338,4.2337,212.51,212.45,7.44]
[1758715213538,4.2337,212.51,212.45,3.95655179]
[1758715213937,4.2337,212.51,212.46,7.44]
[1758715214642,4.2337,212.51,212.45,3.95655179]
[1758715214838,4.2337,212.51,212.46,7.44]
[1758715215044,11.6337,212.51,212.46,7.44]
[1758715215237,11.6337,212.51,212.45,3.95655179]
[1758715216138,11.6337,212.51,212.46,7.44]
[1758715216541,4.2337,212.51,212.45,11.39655179]
[1758715217337,4.2337,212.51,212.45,7.44]
[1758715219238,4.2339,212.5,212.45,11.39655179]
[1758715219444,4.2339,212.5,212.46,7.44]
[1758715219945,7.4,212.52,212.46,7.44]
[1758715220739,4.2341,212.49,212.46,7.44]
[1758715220939,11.6341,212.49,212.46,7.44]
[1758715221545,11.6341,212.49,212.44,3.95655179]
[1758715222040,11.6341,212.49,212.45,7.44]
[1758715222433,4.2341,212.49,212.44,3.95655179]
[1758715222636,11.6341,212.49,212.45,7.44]
[1758715223134,11.6341,212.49,212.44,3.95655179]
[1758715223541,11.6341,212.49,212.45,7.44]
[1758715223748,7.8,212.48,212.45,7.44]
[1758715224550,7.8,212.48,212.43,119.19655179]
[1758715225041,7.8,212.48,212.44,7.32]
[1758715225245,7.8,212.48,212.43,119.19655179]
[1758715225446,7.8,212.48,212.44,7.32]
[1758715225643,4.2341,212.49,212.44,7.32]
[1758715225846,4.2341,212.49,212.43,119.19655179]
[1758715226048,4.2341,212.49,212.44,7.32]
[1758715226444,12.0341,212.49,212.44,7.32]
[1758715226748,12.0341,212.49,212.45,7.32]
[1758715226949,12.0341,212.49,212.44,3.95655179]
[1758715227248,7.8,212.48,212.45,7.32]
[1758715227449,7.8,212.48,212.44,3.95655179]
[1758715227644,4.2341,212.49,212.44,3.95655179]
[1758715227645,12.0341,212.49,212.44,3.95655179]
[1758715228245,12.0341,212.49,212.45,7.32]
[1758715228441,12.0341,212.49,212.44,3.95655179]
[1758715228951,4.2343,212.48,212.44,11.27655179]
[1758715229142,7.8,212.47,212.44,11.27655179]
[1758715229540,4.2346,212.47,212.45,7.32]
[1758715229752,7.8,212.49,212.42,3.95655179]
[1758715230051,7.8,212.49,212.43,3.95655179]
[1758715230242,65.8611,212.5,212.43,3.95655179]
[1758715230243,7.8,212.51,212.43,3.95655179]
[1758715230752,7.8,212.51,212.44,7.32]
[1758715230952,7.8,212.51,212.44,11.27655179]
[1758715231451,7.8,212.51,212.45,7.32]
[1758715231652,7.8,212.51,212.45,11.27655179]
[1758715232451,4.2339,212.5,212.46,3.95655179]
[1758715232651,7.8,212.49,212.46,11.27655179]
[1758715233446,7.8,212.49,212.47,3.66286002]
[1758715233646,7.8,212.49,212.48,3.66286002]
[1758715234042,7.8,212.54,212.48,3.66286002]
[1758715234247,7.8,212.54,212.49,3.66286002]
[1758715234455,7.8,212.54,212.5,3.66286002]
[1758715234752,7.8,212.54,212.51,3.66286002]
[1758715234952,7.8,212.54,212.52,3.66286002]
[1758715235253,7.8,212.54,212.47,3.95655179]
[1758715235451,12.0339,212.5,212.48,3.66311244]
[1758715235653,12.0339,212.5,212.49,3.66311244]
[1758715236855,7.8,212.5,212.49,3.66311244]
[1758715237446,0.81933441,212.56,212.5,7.32]
[1758715237653,7.8,212.59,212.53,3.95655179]
[1758715237951,7.8,212.59,212.54,7.61966423]
[1758715238151,7.8,212.59,212.56,7.32]
[1758715238351,4.232,212.6,212.57,10.98311244]
[1758715238650,4.232,212.6,212.58,3.66311244]
[1758715238850,4.232,212.6,212.59,3.66311244]
[1758715239256,7.8,212.62,212.59,10.98311244]
[1758715239452,7.8,212.62,212.6,3.66311244]
[1758715239654,7.8,212.62,212.61,3.66311244]
[1758715240251,7.8,212.62,212.59,7.32]
[1758715240252,12.0316,212.62,212.59,7.32]
[1758715240456,12.0316,212.62,212.6,3.67835212]
[1758715240654,66.63364878,212.65,212.55,3.95655179]
[1758715240858,7.8,212.57,212.56,3.67835228]
[1758715241158,7.8,212.57,212.5,3.95655179]
[1758715241460,7.8,212.57,212.51,3.68037794]
[1758715241657,7.8,212.57,212.5,3.95655179]
[1758715241658,7.8,212.58,212.52,3.68037794]
[1758715241853,7.8,212.58,212.53,3.68037794]
[1758715242058,65.8334,212.59,212.54,3.68037794]
[1758715242257,7.8,212.58,212.55,3.68037794]
[1758715242456,7.8,212.58,212.5,11.27655179]
[1758715242660,7.8,212.58,212.51,3.6803664]
[1758715242852,7.8,212.58,212.52,3.6803664]
[1758715243053,7.8,212.58,212.53,3.6803664]
[1758715243355,65.8358,212.58,212.54,3.6803664]
[1758715243656,65.8358,212.58,212.55,3.6803664]
[1758715243853,4.2333,212.53,212.5,3.95655179]
[1758715244055,4.2333,212.53,212.51,11.00090419]
[1758715244259,4.2333,212.53,212.52,3.68090419]
[1758715245466,4.2329,212.55,212.52,11.00090419]
[1758715245763,12.0329,212.55,212.53,3.68090419]
[1758715245964,12.0329,212.55,212.54,3.68090419]
[1758715246356,4.2329,212.55,212.54,3.68090419]
[1758715246563,4.2325,212.57,212.55,7.32]
[1758715246866,139.00329578,212.6,212.57,7.32]
[1758715247160,139.00329578,212.6,212.58,3.68090419]
[1758715247456,151.03509578,212.6,212.59,3.68090419]
[1758715247857,12.0318,212.6,212.59,3.68090419]